fUSD/lending_fUSD_20260610
["ID","MTS","AMOUNT","RATE_DAILY","PERIOD"]
[424672329,1781039452000,-1351.24329591,0.00019999,2]
[424672328,1781039452000,-1351.24329591,0.00019999,2]
[424672326,1781039452000,-500.0,0.00019999,2]
[424672357,1781039452000,-2045.92174739,0.00019999,2]
[424672388,1781039452000,-2045.92174739,0.00019999,2]
[424672358,1781039452000,-2045.92174739,0.00019999,2]
[424672390,1781039452000,-2045.92174739,0.00019999,2]
[424672394,1781039452000,-2045.92174739,0.00019999,2]
[424672397,1781039452000,-2045.92174739,0.00019999,2]
[424672393,1781039452000,-2045.92174739,0.00019999,2]
[424672396,1781039452000,-2045.92174739,0.00019999,2]
[424672395,1781039452000,-2045.92174739,0.00019999,2]
[424672392,1781039452000,-2045.92174739,0.00019999,2]
[424672398,1781039452000,-2045.92174739,0.00019999,2]
[424672400,1781039452000,-2045.92174739,0.00019999,2]
[424672401,1781039452000,-2045.92174739,0.00019999,2]
[424672402,1781039452000,-2045.92174739,0.00019999,2]
[424672403,1781039452000,-2045.92174739,0.00019999,2]
[424672407,1781039452000,-2045.92174739,0.00019999,2]
[424672399,1781039452000,-2045.92174739,0.00019999,2]
[424672406,1781039452000,-2045.92174739,0.00019999,2]
[424672404,1781039452000,-2045.92174739,0.00019999,2]
[424672408,1781039452000,-1337.73086295,0.00019999,2]
[424672409,1781039452000,-2045.92174739,0.00019999,2]
[424672410,1781039452000,-2045.92174739,0.00019999,2]
[424672411,1781039452000,-1337.73086295,0.00019999,2]
[424672413,1781039452000,-2045.92174739,0.00019999,2]
[424672415,1781039452000,-1337.73086295,0.00019999,2]
[424672412,1781039452000,-1337.73086295,0.00019999,2]
[424672414,1781039452000,-2045.92174739,0.00019999,2]
[424672361,1781039452000,-2045.92174739,0.00019999,2]
[424672389,1781039452000,-2045.92174739,0.00019999,2]
[424672391,1781039452000,-2045.92174739,0.00019999,2]
[424672405,1781039452000,-2045.92174739,0.00019999,2]
[424672384,1781039452000,-2045.92174739,0.00019999,2]
[424672387,1781039452000,-2045.92174739,0.00019999,2]
[424672359,1781039452000,-2045.92174739,0.00019999,2]
[424672356,1781039452000,-2045.92174739,0.00019999,2]
[424672360,1781039452000,-2045.92174739,0.00019999,2]
[424672374,1781039452000,-2045.92174739,0.00019999,2]
[424672375,1781039452000,-2045.92174739,0.00019999,2]
[424672364,1781039452000,-2045.92174739,0.00019999,2]
[424672363,1781039452000,-2045.92174739,0.00019999,2]
[424672366,1781039452000,-2045.92174739,0.00019999,2]
[424672370,1781039452000,-2045.92174739,0.00019999,2]
[424672367,1781039452000,-2045.92174739,0.00019999,2]
[424672373,1781039452000,-2045.92174739,0.00019999,2]
[424672369,1781039452000,-2045.92174739,0.00019999,2]
[424672365,1781039452000,-2045.92174739,0.00019999,2]
[424672381,1781039452000,-2045.92174739,0.00019999,2]
[424672368,1781039452000,-2045.92174739,0.00019999,2]
[424672371,1781039452000,-2045.92174739,0.00019999,2]
[424672378,1781039452000,-2045.92174739,0.00019999,2]
[424672377,1781039452000,-2045.92174739,0.00019999,2]
[424672380,1781039452000,-2045.92174739,0.00019999,2]
[424672379,1781039452000,-2045.92174739,0.00019999,2]
[424672376,1781039452000,-2045.92174739,0.00019999,2]
[424672385,1781039452000,-2045.92174739,0.00019999,2]
[424672386,1781039452000,-2045.92174739,0.00019999,2]
[424672383,1781039452000,-2045.92174739,0.00019999,2]
[424672372,1781039452000,-2045.92174739,0.00019999,2]
[424672382,1781039452000,-2045.92174739,0.00019999,2]
[424672432,1781039453000,-500.0,0.00019999,2]
[424672431,1781039453000,-491.51226608,0.00019999,2]
[424672446,1781039453000,-1982.970309,0.00019999,2]
[424672435,1781039453000,-1982.970309,0.00019999,2]
[424672434,1781039453000,-1982.970309,0.00019999,2]
[424672436,1781039453000,-1982.970309,0.00019999,2]
[424672438,1781039453000,-1982.970309,0.00019999,2]
[424672448,1781039453000,-1982.970309,0.00019999,2]
[424672441,1781039453000,-1982.970309,0.00019999,2]
[424672444,1781039453000,-1982.970309,0.00019999,2]
[424672443,1781039453000,-1982.970309,0.00019999,2]
[424672442,1781039453000,-1982.970309,0.00019999,2]
[424672440,1781039453000,-1982.970309,0.00019999,2]
[424672437,1781039453000,-1982.970309,0.00019999,2]
[424672433,1781039453000,-514.30782019,0.00019999,2]
[424672417,1781039453000,-1337.73086295,0.00019999,2]
[424672439,1781039453000,-1982.970309,0.00019999,2]
[424672451,1781039453000,-1982.970309,0.00019999,2]
[424672418,1781039453000,-2045.92174739,0.00019999,2]
[424672416,1781039453000,-2045.92174739,0.00019999,2]
[424672419,1781039453000,-2045.92174739,0.00019999,2]
[424672422,1781039453000,-2045.92174739,0.00019999,2]
[424672424,1781039453000,-500.0,0.00019999,2]
[424672429,1781039453000,-500.0,0.00019999,2]
[424672423,1781039453000,-2045.92174739,0.00019999,2]
[424672421,1781039453000,-2045.92174739,0.00019999,2]
[424672420,1781039453000,-1337.73086295,0.00019999,2]
[424672426,1781039453000,-1337.73086295,0.00019999,2]
[424672427,1781039453000,-1337.73086295,0.00019999,2]
[424672428,1781039453000,-370.40977073,0.00019999,2]
[424672430,1781039453000,-500.0,0.00019999,2]
[424672425,1781039453000,-1337.73086295,0.00019999,2]
[424672449,1781039453000,-1982.970309,0.00019999,2]
[424672450,1781039453000,-1982.970309,0.00019999,2]
[424672445,1781039453000,-1982.970309,0.00019999,2]
[424672468,1781039453000,-4465.0,0.0002,2]
[424672475,1781039453000,-735.0,0.0002,2]
[424672474,1781039453000,-3344.0,0.0002,2]
[424672473,1781039453000,-653.0,0.0002,2]
[424672465,1781039453000,-2256.0,0.0002,2]
[424672471,1781039453000,-2206.0,0.0002,2]
[424672469,1781039453000,-781.0,0.0002,2]
[424672477,1781039453000,-343.0,0.0002,2]
[424672476,1781039453000,-1271.0,0.0002,2]
[424672480,1781039453000,-421.91665544,0.00020048,2]
[424672482,1781039453000,-2319.72410669,0.00020116,2]
[424672481,1781039453000,-186.0,0.00020051,2]
[424672447,1781039453000,-1982.970309,0.00019999,2]
[424672483,1781039453000,-1852.42855392,0.000202,2]
[424672478,1781039453000,-3054.0,0.0002,2]
[424672470,1781039453000,-592.0,0.0002,2]
[424672479,1781039453000,-6475.04,0.0002,2]
[424672467,1781039453000,-400.0,0.0002,2]
[424672472,1781039453000,-817.0,0.0002,2]
[424672453,1781039453000,-1982.970309,0.00019999,2]
[424672452,1781039453000,-1982.970309,0.00019999,2]
[424672455,1781039453000,-1982.970309,0.00019999,2]
[424672456,1781039453000,-1982.970309,0.00019999,2]
[424672458,1781039453000,-1982.970309,0.00019999,2]
[424672457,1781039453000,-1982.970309,0.00019999,2]
[424672454,1781039453000,-1982.970309,0.00019999,2]
[424672461,1781039453000,-390.411394,0.0002,2]
[424672462,1781039453000,-697.0,0.0002,2]
[424672460,1781039453000,-1337.73086292,0.00019999,2]
[424672459,1781039453000,-1982.970309,0.00019999,2]
[424672464,1781039453000,-700.0,0.0002,2]
[424672463,1781039453000,-839.0,0.0002,2]
[424672466,1781039453000,-1852.42855392,0.0002,2]
[424672521,1781039454000,-146994.7770047,0.00020961,2]
[424672517,1781039454000,-2000.0,0.000209,2]
[424672518,1781039454000,-4046.0,0.00020914,2]
[424672513,1781039454000,-1852.42855392,0.000206,2]
[424672514,1781039454000,-2405.55389863,0.00020664,2]
[424672512,1781039454000,-150.0,0.0002058,2]
[424672515,1781039454000,-1852.42855392,0.000208,2]
[424672519,1781039454000,-300.0,0.00020961,2]
[424672510,1781039454000,-1852.42855392,0.000204,2]
[424672516,1781039454000,-207.0,0.00020822,2]
[424672523,1781039454000,-300.0,0.00020961,2]
[424672529,1781039454000,-151.0,0.00020962,2]
[424672524,1781039454000,-300.0,0.00020961,2]
[424672530,1781039454000,-151.0,0.00020962,2]
[424672527,1781039454000,-156.836525,0.00020962,2]
[424672522,1781039454000,-300.0,0.00020961,2]
[424672525,1781039454000,-300.0,0.00020961,2]
[424672526,1781039454000,-300.0,0.00020961,2]
[424672531,1781039454000,-151.0,0.00020962,2]
[424672528,1781039454000,-151.0,0.00020962,2]
[424672533,1781039454000,-151.0,0.00020962,2]
[424672532,1781039454000,-151.0,0.00020962,2]
[424672520,1781039454000,-916.582463,0.00020961,2]
[424672536,1781039454000,-166.862507,0.00020962,2]
[424672511,1781039454000,-500.0,0.00020562,2]
[424672493,1781039454000,-200.0,0.00020221,2]
[424672507,1781039454000,-151.0,0.00020301,2]
[424672540,1781039454000,-428.871314,0.00020962,2]
[424672487,1781039454000,-200.0,0.00020221,2]
[424672485,1781039454000,-212.0,0.00020218,2]
[424672486,1781039454000,-200.0,0.00020221,2]
[424672484,1781039454000,-150.0,0.00020218,2]
[424672489,1781039454000,-200.0,0.00020221,2]
[424672488,1781039454000,-200.0,0.00020221,2]
[424672490,1781039454000,-200.0,0.00020221,2]
[424672497,1781039454000,-600.0,0.00020231,2]
[424672495,1781039454000,-192.0,0.00020221,2]
[424672494,1781039454000,-300.0,0.00020221,2]
[424672508,1781039454000,-151.0,0.00020301,2]
[424672491,1781039454000,-200.0,0.00020221,2]
[424672492,1781039454000,-200.0,0.00020221,2]
[424672496,1781039454000,-600.0,0.00020231,2]
[424672499,1781039454000,-600.0,0.00020231,2]
[424672500,1781039454000,-600.0,0.00020231,2]
[424672501,1781039454000,-600.0,0.00020231,2]
[424672504,1781039454000,-600.0,0.00020231,2]
[424672502,1781039454000,-600.0,0.00020231,2]
[424672509,1781039454000,-1599.6,0.00020381,2]
[424672505,1781039454000,-302.0,0.00020231,2]
[424672503,1781039454000,-600.0,0.00020231,2]
[424672506,1781039454000,-152.0,0.00020301,2]
[424672498,1781039454000,-600.0,0.00020231,2]
[424672535,1781039454000,-151.0,0.00020962,2]
[424672581,1781039454000,-592.0,0.00021,2]
[424672541,1781039454000,-428.871314,0.00020962,2]
[424672568,1781039454000,-15000.0,0.00021,2]
[424672566,1781039454000,-300.0,0.00020999,2]
[424672571,1781039454000,-8013.31005131,0.00021,2]
[424672569,1781039454000,-6111.0,0.00021,2]
[424672570,1781039454000,-10149.95985562,0.00021,2]
[424672574,1781039454000,-839.0,0.00021,2]
[424672573,1781039454000,-697.0,0.00021,2]
[424672572,1781039454000,-390.411394,0.00021,2]
[424672575,1781039454000,-700.0,0.00021,2]
[424672576,1781039454000,-978.19588565,0.00021,2]
[424672577,1781039454000,-2256.0,0.00021,2]
[424672578,1781039454000,-1852.42855392,0.00021,2]
[424672584,1781039454000,-653.0,0.00021,2]
[424672582,1781039454000,-2206.0,0.00021,2]
[424672580,1781039454000,-781.0,0.00021,2]
[424672579,1781039454000,-4465.0,0.00021,2]
[424672583,1781039454000,-817.0,0.00021,2]
[424672537,1781039454000,-151.0,0.00020962,2]
[424672590,1781039454000,-2416.224079,0.00021,2]
[424672588,1781039454000,-343.0,0.00021,2]
[424672589,1781039454000,-2416.224079,0.00021,2]
[424672587,1781039454000,-1271.0,0.00021,2]
[424672585,1781039454000,-3344.0,0.00021,2]
[424672567,1781039454000,-6094.87020681,0.00021,2]
[424672565,1781039454000,-361.76113529,0.00020999,2]
[424672586,1781039454000,-735.0,0.00021,2]
[424672557,1781039454000,-742640.8235738,0.00020962,2]
[424672564,1781039454000,-300.0,0.00020999,2]
[424672538,1781039454000,-151.0,0.00020962,2]
[424672542,1781039454000,-151.0,0.00020962,2]
[424672534,1781039454000,-275.425078,0.00020962,2]
[424672543,1781039454000,-428.871314,0.00020962,2]
[424672546,1781039454000,-186.921122,0.00020962,2]
[424672548,1781039454000,-524.095183,0.00020962,2]
[424672544,1781039454000,-186.921122,0.00020962,2]
[424672545,1781039454000,-186.921122,0.00020962,2]
[424672547,1781039454000,-186.921122,0.00020962,2]
[424672550,1781039454000,-524.095183,0.00020962,2]
[424672552,1781039454000,-524.095183,0.00020962,2]
[424672539,1781039454000,-428.871314,0.00020962,2]
[424672549,1781039454000,-151.0,0.00020962,2]
[424672553,1781039454000,-274.62911,0.00020962,2]
[424672561,1781039454000,-8554.3690488,0.00020962,2]
[424672558,1781039454000,-6456.6491584,0.00020962,2]
[424672559,1781039454000,-118357.0644532,0.00020962,2]
[424672560,1781039454000,-338768.9536783,0.00020962,2]
[424672562,1781039454000,-300.0,0.00020999,2]
[424672555,1781039454000,-110246.0827535,0.00020962,2]
[424672554,1781039454000,-524.095183,0.00020962,2]
[424672551,1781039454000,-151.0,0.00020962,2]
[424672556,1781039454000,-8758.4304537,0.00020962,2]
[424672563,1781039454000,-300.0,0.00020999,2]
[424672614,1781039455000,-443.9,0.00021205,2]
[424672619,1781039455000,-223.960333,0.00021273,2]
[424672608,1781039455000,-151.0,0.00021,2]
[424672613,1781039455000,-1031.98,0.000212,2]
[424672615,1781039455000,-2494.55939288,0.00021212,2]
[424672616,1781039455000,-300.0,0.00021272,2]
[424672617,1781039455000,-300.0,0.00021272,2]
[424672620,1781039455000,-223.960333,0.00021273,2]
[424672624,1781039455000,-468.85,0.00021273,2]
[424672621,1781039455000,-223.960333,0.00021273,2]
[424672626,1781039455000,-1852.42855392,0.000214,2]
[424672625,1781039455000,-978.19588565,0.000214,2]
[424672628,1781039455000,-1852.42855392,0.000217,2]
[424672623,1781039455000,-16103.29,0.00021273,2]
[424672627,1781039455000,-978.19588565,0.000216,2]
[424672629,1781039455000,-6475.04,0.00021703,2]
[424672618,1781039455000,-300.0,0.00021272,2]
[424672622,1781039455000,-223.960333,0.00021273,2]
[424672611,1781039455000,-978.19588565,0.000212,2]
[424672598,1781039455000,-774.886158,0.00021,2]
[424672612,1781039455000,-1852.42855392,0.000212,2]
[424672630,1781039455000,-2586.85809042,0.0002176,2]
[424672592,1781039455000,-2416.224079,0.00021,2]
[424672594,1781039455000,-5257.394979,0.00021,2]
[424672591,1781039455000,-2416.224079,0.00021,2]
[424672593,1781039455000,-5257.394979,0.00021,2]
[424672596,1781039455000,-5257.394979,0.00021,2]
[424672599,1781039455000,-774.886158,0.00021,2]
[424672606,1781039455000,-151.0,0.00021,2]
[424672610,1781039455000,-500.0,0.00021179,2]
[424672597,1781039455000,-774.886158,0.00021,2]
[424672601,1781039455000,-151.0,0.00021,2]
[424672602,1781039455000,-489.961075,0.00021,2]
[424672600,1781039455000,-774.886158,0.00021,2]
[424672603,1781039455000,-489.961075,0.00021,2]
[424672605,1781039455000,-489.961075,0.00021,2]
[424672604,1781039455000,-489.961075,0.00021,2]
[424672607,1781039455000,-151.0,0.00021,2]
[424672609,1781039455000,-1125.0,0.00021103,2]
[424672595,1781039455000,-5257.394979,0.00021,2]
[424672631,1781039455000,-500.0,0.00021815,2]
[424672632,1781039455000,-500.0,0.00021848,7]
[424672639,1781039455000,-1119.39707749,0.00021918,2]
[424672658,1781039455000,-166.0,0.00021932,2]
[424672657,1781039455000,-166.0,0.00021932,2]
[424672654,1781039455000,-166.0,0.00021932,2]
[424672659,1781039455000,-152.0,0.00021932,2]
[424672660,1781039455000,-152.0,0.00021932,2]
[424672661,1781039455000,-246.72228664,0.00021932,2]
[424672662,1781039455000,-166.0,0.00021932,2]
[424672668,1781039455000,-300.0,0.00021999,2]
[424672666,1781039455000,-300.0,0.00021999,2]
[424672670,1781039455000,-10000.0,0.00022,10]
[424672664,1781039455000,-151.0,0.00021997,2]
[424672665,1781039455000,-200.0,0.00021998,2]
[424672669,1781039455000,-10000.0,0.00022,10]
[424672672,1781039455000,-8539.55,0.00022,10]
[424672663,1781039455000,-156.15119,0.00021997,2]
[424672667,1781039455000,-300.0,0.00021999,2]
[424672633,1781039455000,-500.0,0.00021848,7]
[424672656,1781039455000,-166.0,0.00021932,2]
[424672653,1781039455000,-166.0,0.00021932,2]
[424672671,1781039455000,-10000.0,0.00022,10]
[424672652,1781039455000,-166.0,0.00021932,2]
[424672640,1781039455000,-5000.0,0.00021918,2]
[424672634,1781039455000,-502.873,0.00021848,7]
[424672638,1781039455000,-1877.49301989,0.00021918,2]
[424672637,1781039455000,-1852.42855392,0.000219,2]
[424672673,1781039455000,-1863148.70631677,0.00022,10]
[424672655,1781039455000,-166.0,0.00021932,2]
[424672636,1781039455000,-978.19588565,0.000219,2]
[424672642,1781039455000,-151.0,0.00021918,2]
[424672641,1781039455000,-151.0,0.00021918,2]
[424672635,1781039455000,-2000.0,0.00021872,7]
[424672645,1781039455000,-151.0,0.00021918,2]
[424672647,1781039455000,-306.88,0.00021918,2]
[424672650,1781039455000,-605.51850817,0.00021918,30]
[424672644,1781039455000,-151.0,0.00021918,2]
[424672648,1781039455000,-673.80685701,0.00021918,30]
[424672649,1781039455000,-217.35021273,0.00021918,30]
[424672646,1781039455000,-151.0,0.00021918,2]
[424672651,1781039455000,-200.0,0.00021918,2]
[424672643,1781039455000,-151.0,0.00021918,2]
[424672678,1781039457000,-794.1713751,0.00014713,2]
[424672677,1781039457000,-489.87797957,0.00014713,2]
[424672676,1781039457000,-2171.74000001,0.00022,10]
[424672675,1781039457000,-2499.2819,0.00022,10]
[424672674,1781039457000,-702.14432026,0.00022,10]
[424672680,1781039458000,-2859.0340412,0.00014713,2]
[424672683,1781039458000,-394.37174345,0.00022,10]
[424672679,1781039458000,-385.20939042,0.00014525,2]
[424672681,1781039458000,-1423.75656871,0.00022,10]
[424672684,1781039458000,-399.48050875,0.00022,10]
[424672685,1781039458000,-4401.2166577,0.00022,10]
[424672682,1781039458000,-1581.90000001,0.00022,10]
[424672706,1781039764000,172.97,0.00027653,120]
[424672727,1781040228000,1000.0,0.00029452,120]
[424672740,1781040507000,321.34,0.00030082,120]
[424672768,1781040632000,-2369.04951609,8.468e-05,2]
[424672769,1781040632000,-2000.0,8.534e-05,2]
[424672770,1781040632000,-200.0,8.679e-05,2]
[424672771,1781040632000,-166.66,8.747e-05,2]
[424672774,1781040632000,-300.0,9.042e-05,2]
[424672773,1781040632000,-166.66,9.027e-05,2]
[424672766,1781040632000,-4000.0,8.279e-05,2]
[424672775,1781040632000,-250.0,9.043e-05,2]
[424672776,1781040632000,-500.0,9.043e-05,2]
[424672772,1781040632000,-500.0,8.967e-05,2]
[424672767,1781040632000,-166.66,8.468e-05,2]
[424672760,1781040632000,-4000.0,8.222e-05,2]
[424672763,1781040632000,-300.0,8.23e-05,2]
[424672759,1781040632000,-150.0,8.222e-05,2]
[424672762,1781040632000,-300.0,8.23e-05,2]
[424672761,1781040632000,-500.0,8.223e-05,2]
[424672757,1781040632000,-161.405,8.221e-05,2]
[424672764,1781040632000,-216.06293953,8.23e-05,2]
[424672758,1781040632000,-300.0,8.222e-05,2]
[424672756,1781040632000,-148.925,8.221e-05,2]
[424672755,1781040632000,-470.45,8.221e-05,2]
[424672777,1781040632000,-500.0,9.043e-05,2]
[424672765,1781040632000,-160.0,8.257e-05,2]
[424672778,1781040632000,-250.0,9.043e-05,2]
[424672789,1781040632000,-833.26,9.441e-05,2]
[424672779,1781040632000,-335.69512927,9.043e-05,2]
[424672780,1781040632000,-4000.0,9.043e-05,2]
[424672803,1781040632000,-263.11808268,0.000101,2]
[424672804,1781040632000,-14678.90843423,0.00010161,2]
[424672802,1781040632000,-2369.04951609,0.00010064,2]
[424672800,1781040632000,-190.83726698,0.00010015,2]
[424672799,1781040632000,-22496.27169349,0.0001,2]
[424672796,1781040632000,-1955.91819263,0.0001,2]
[424672797,1781040632000,-163.64,0.0001,2]
[424672798,1781040632000,-2770.07344624,0.0001,2]
[424672792,1781040632000,-166.66,9.865e-05,2]
[424672793,1781040632000,-150.0,9.999e-05,2]
[424672791,1781040632000,-2000.0,9.601e-05,2]
[424672801,1781040632000,-4000.0,0.00010027,2]
[424672795,1781040632000,-190.83726698,0.0001,2]
[424672794,1781040632000,-190.83726698,0.0001,2]
[424672783,1781040632000,-300.0,9.043e-05,2]
[424672784,1781040632000,-950.16,9.084e-05,2]
[424672782,1781040632000,-500.0,9.043e-05,2]
[424672785,1781040632000,-158.3,9.226e-05,2]
[424672786,1781040632000,-384.38136201,9.264e-05,2]
[424672781,1781040632000,-250.0,9.043e-05,2]
[424672787,1781040632000,-166.66,9.306e-05,2]
[424672788,1781040632000,-2369.04951609,9.316e-05,2]
[424672790,1781040632000,-166.66,9.586e-05,2]
[424672915,1781040639000,-186.66,0.00010959,2]
[424672917,1781040639000,-150.0,0.00010959,2]
[424672919,1781040639000,-255.0,0.00010999,2]
[424672923,1781040639000,-4000.0,0.0001103,2]
[424672925,1781040639000,-500.0,0.00011031,2]
[424672921,1781040639000,-7506.49991501,0.00011,2]
[424672927,1781040639000,-166.66,0.00011068,2]
[424672938,1781040639000,-150.0,0.00011233,2]
[424672931,1781040639000,-11927.73899175,0.00011099,2]
[424672933,1781040639000,-11493.4593155,0.00011147,2]
[424672935,1781040639000,-166.66,0.00011178,2]
[424672948,1781040639000,-166.66,0.00011397,2]
[424672940,1781040639000,-9999.99,0.00011281,2]
[424672909,1781040639000,-500.0,0.00010958,2]
[424672944,1781040639000,-500.0,0.00011305,2]
[424672929,1781040639000,-11927.73899178,0.00011099,2]
[424672913,1781040639000,-166.66,0.00010959,2]
[424672888,1781040639000,-158.3,0.00010379,2]
[424672904,1781040639000,-4000.0,0.00010779,2]
[424672942,1781040639000,-166.66,0.00011288,2]
[424672873,1781040639000,-1063.65325196,0.00010161,2]
[424672886,1781040639000,-195398.93611564,0.000103,2]
[424672875,1781040639000,-17529.16371381,0.00010161,2]
[424672890,1781040639000,-150.99,0.00010475,2]
[424672892,1781040639000,-500.0,0.00010483,2]
[424672896,1781040639000,-833.26,0.00010621,2]
[424672877,1781040639000,-574.21279451,0.00010164,2]
[424672894,1781040639000,-4000.0,0.00010529,2]
[424672880,1781040639000,-2204.9595,0.000102,2]
[424672881,1781040639000,-215.89329178,0.00010223,2]
[424672898,1781040639000,-2000.0,0.00010668,2]
[424672902,1781040639000,-500.0,0.00010757,2]
[424672900,1781040639000,-271.76580193,0.000107,2]
[424672911,1781040639000,-150.0,0.00010959,2]
[424672906,1781040639000,-11493.45931557,0.000109,2]
[424672946,1781040639000,-11927.73899175,0.00011306,2]
[424672884,1781040639000,-4000.0,0.00010278,2]
[424672953,1781040639000,-158.3,0.00011533,2]
[424672995,1781040639000,-11493.4593155,0.00013023,2]
[424672997,1781040639000,-1069.64011697,0.0001305,2]
[424673011,1781040639000,-1000.0,0.000135,2]
[424673014,1781040639000,-174.71291421,0.00013503,2]
[424673016,1781040639000,-150.0,0.00013508,2]
[424673024,1781040639000,-150.0,0.00013548,2]
[424672999,1781040639000,-199.5,0.00013222,2]
[424673018,1781040639000,-174.71291421,0.00013518,2]
[424673020,1781040639000,-150.0,0.00013528,2]
[424673003,1781040639000,-11927.73899175,0.0001336,2]
[424673007,1781040639000,-174.71291421,0.00013488,2]
[424673022,1781040639000,-174.71291421,0.00013533,2]
[424673005,1781040639000,-150.0,0.00013488,2]
[424673001,1781040639000,-414.0,0.00013309,2]
[424673009,1781040639000,-150.0,0.00013488,2]
[424672988,1781040639000,-833.26,0.00012982,2]
[424672982,1781040639000,-172.97,0.00012858,2]
[424672951,1781040639000,-166.66,0.00011507,2]
[424672990,1781040639000,-2357.5688013,0.00013,2]
[424672993,1781040639000,-441.63701299,0.00013,5]
[424672950,1781040639000,-3254.83881287,0.000114,2]
[424672961,1781040639000,-833.26,0.00011802,2]
[424672956,1781040639000,-2000.0,0.00011734,2]
[424672959,1781040639000,-11493.4593155,0.00011772,2]
[424672963,1781040639000,-11927.73899175,0.00011819,2]
[424672965,1781040639000,-433.0,0.00012099,2]
[424672969,1781040639000,-11927.73899175,0.00012333,2]
[424672954,1781040639000,-500.0,0.00011579,2]
[424672971,1781040639000,-11493.4593155,0.00012398,2]
[424672974,1781040639000,-500.0,0.00012411,2]
[424672976,1781040639000,-158.3,0.00012686,2]
[424672984,1781040639000,-572.15,0.00012944,2]
[424672986,1781040639000,-500.0,0.0001296,2]
[424672980,1781040639000,-11927.73899175,0.00012846,2]
[424672967,1781040639000,-321.34,0.00012329,2]
[424672978,1781040639000,-2000.0,0.00012801,2]
[424673111,1781040640000,-150.0,0.00013847,2]
[424673109,1781040640000,-158.3,0.00013839,2]
[424673107,1781040640000,-174.71291421,0.00013836,2]
[424673113,1781040640000,-174.71291421,0.00013851,2]
[424673117,1781040640000,-150.0,0.00013867,2]
[424673094,1781040640000,-150.0,0.00013787,2]
[424673102,1781040640000,-174.71291421,0.00013821,2]
[424673096,1781040640000,-174.71291421,0.0001379,2]
[424673089,1781040640000,-150.0,0.00013767,2]
[424673092,1781040640000,-174.71291421,0.00013775,2]
[424673115,1781040640000,-174.71291421,0.00013866,2]
[424673105,1781040640000,-150.0,0.00013827,2]
[424673124,1781040640000,-150.0,0.00013887,2]
[424673140,1781040640000,-174.71291421,0.00013957,2]
[424673121,1781040640000,-174.71291421,0.00013881,2]
[424673119,1781040640000,-11927.73899175,0.00013873,2]
[424673126,1781040640000,-174.71291421,0.00013896,2]
[424673132,1781040640000,-174.71291421,0.00013927,2]
[424673134,1781040640000,-150.0,0.00013927,2]
[424673130,1781040640000,-174.71291421,0.00013912,2]
[424673100,1781040640000,-150.0,0.00013807,2]
[424673138,1781040640000,-150.0,0.00013947,2]
[424673136,1781040640000,-174.71291421,0.00013942,2]
[424673148,1781040640000,-174.71291421,0.00013987,2]
[424673142,1781040640000,-150.0,0.00013967,2]
[424673146,1781040640000,-150.0,0.00013987,2]
[424673144,1781040640000,-174.71291421,0.00013972,2]
[424673128,1781040640000,-150.0,0.00013907,2]
[424673098,1781040640000,-174.71291421,0.00013806,2]
[424673068,1781040640000,-174.71291421,0.000137,2]
[424673087,1781040640000,-174.71291421,0.0001376,2]
[424673030,1781040640000,-150.0,0.00013568,2]
[424673028,1781040640000,-174.71291421,0.00013563,2]
[424673032,1781040640000,-174.71291421,0.00013578,2]
[424673034,1781040640000,-150.0,0.00013588,2]
[424673049,1781040640000,-150.0,0.00013648,2]
[424673047,1781040640000,-174.71291421,0.00013639,2]
[424673045,1781040640000,-150.0,0.00013628,2]
[424673043,1781040640000,-174.71291421,0.00013624,2]
[424673039,1781040640000,-150.0,0.00013608,2]
[424673041,1781040640000,-174.71291421,0.00013609,2]